bitfinex/quotes_SOLUSD_20250722
["timestamp","ask_amount","ask_price","bid_price","bid_amount"]
[1753171731095,43.28,195.93,195.92,7.50277197]
[1753171731289,43.28,195.93,195.92,11.16637088]
[1753171731490,43.28,195.93,195.92,11.88637088]
[1753171731709,43.26,195.95,195.92,11.88637088]
[1753171731898,1284.81562356,196.0,195.94,11.16637088]
[1753171732084,1294.81562356,196.0,195.99,11.16637088]
[1753171732288,1328.05562356,196.0,195.99,11.16637088]
[1753171732501,1338.05562356,196.0,195.99,11.16637088]
[1753171732802,1328.05562356,196.0,195.99,11.16637088]
[1753171733383,1259.28238696,196.0,195.99,11.88637088]
[1753171733806,1206.75878127,196.0,195.99,28.15504289]
[1753171734012,1177.31753935,196.0,195.99,28.15504289]
[1753171734300,1177.31753935,196.0,195.99,16.98867201]
[1753171734993,1177.31753935,196.0,195.99,16.26867201]
[1753171736284,1177.31753935,196.0,195.93,12.75952655]
[1753171736481,1177.31753935,196.0,195.98,11.16637088]
[1753171736482,53.1,195.99,195.98,11.16637088]
[1753171736699,53.8,195.99,195.97,11.16637088]
[1753171736904,10.0,195.98,195.97,11.16637088]
[1753171737312,10.7,195.98,195.97,11.16637088]
[1753171737488,10.0,195.98,195.97,11.16637088]
[1753171737683,10.0,195.96,195.92,17.86443446]
[1753171737902,53.04,195.96,195.95,11.16637088]
[1753171738111,53.04,195.96,195.95,16.26971356]
[1753171738283,53.74,195.96,195.87,12.79340671]
[1753171738488,10.0,195.93,195.92,11.16637088]
[1753171738693,42.98,195.93,195.92,11.16637088]
[1753171739282,10.0,195.9,195.87,5.13541149]
[1753171739481,42.92,195.89,195.87,5.13541149]
[1753171739688,42.92,195.89,195.88,11.16637088]
[1753171739910,42.92,195.89,195.87,5.13541149]
[1753171739911,52.92,195.89,195.87,11.19637088]
[1753171740386,10.0,195.89,195.88,11.16637088]
[1753171740588,42.92,195.89,195.88,11.16637088]
[1753171741808,42.92,195.89,195.87,5.13540298]
[1753171742006,42.9,195.9,195.88,11.16637088]
[1753171742213,42.9,195.9,195.89,11.16637088]
[1753171742891,10.0,195.99,195.92,26.0]
[1753171743095,1177.31753935,196.0,195.98,11.16637088]
[1753171743422,1177.31753935,196.0,195.99,11.16637088]
[1753171743606,1220.13753935,196.0,195.99,11.16637088]
[1753171743796,1220.13753935,196.0,195.87,0.03]
[1753171743797,10.0,195.97,195.96,11.16637088]
[1753171744000,16.6387,195.95,195.91,11.16637088]
[1753171744206,52.78,195.94,195.92,5.10412413]
[1753171744540,10.0,195.92,195.88,17.86808249]
[1753171744823,42.78,195.91,195.88,17.86808249]
[1753171744986,42.76,195.91,195.88,17.86808249]
[1753171745489,42.76,195.91,195.88,18.58808249]
[1753171745688,42.76,195.94,195.9,11.16637088]
[1753171745903,42.76,195.94,195.89,0.72]
[1753171745904,52.76,195.94,195.93,11.16637088]
[1753171746107,10.0,195.98,195.93,11.88637088]
[1753171746289,42.72,195.97,195.94,17.86261099]
[1753171746485,42.72,195.97,195.96,11.16637088]
[1753171746801,52.72,195.97,195.96,11.16637088]
[1753171747115,42.72,195.97,195.96,11.16637088]
[1753171747317,43.42,195.97,195.86,26.72]
[1753171747496,10.0,195.92,195.9,11.16637088]
[1753171747687,52.62,195.91,195.9,11.16637088]
[1753171747884,52.62,195.91,195.82,0.72]
[1753171747885,10.0,195.9,195.85,26.0]
[1753171748228,52.64,195.89,195.87,11.19637088]
[1753171748510,52.64,195.89,195.88,11.16637088]
[1753171749209,42.64,195.89,195.87,0.03]
[1753171749511,52.64,195.89,195.87,0.03]
[1753171749818,52.64,195.89,195.88,11.16637088]
[1753171750194,42.64,195.89,195.88,11.16637088]
[1753171750399,52.64,195.89,195.87,0.03]
[1753171750591,52.64,195.89,195.88,11.16637088]
[1753171750792,43.33,195.89,195.88,11.16637088]
[1753171751113,53.33,195.89,195.88,11.16637088]
[1753171751300,10.0,195.97,195.89,16.78468397]
[1753171751498,10.0,195.97,195.96,11.16637088]
[1753171751819,52.6,195.97,195.96,11.16637088]
[1753171752012,42.6,195.97,195.96,11.16637088]
[1753171752316,1177.31753935,196.0,195.97,5.10282186]
[1753171752615,1177.31753935,196.0,195.92,26.0]
[1753171752616,10.0,195.94,195.92,11.16637088]
[1753171752791,42.54,195.93,195.92,11.16637088]
[1753171753410,10.0,195.97,195.92,11.16637088]
[1753171753729,52.54,195.96,195.92,0.68]
[1753171753902,1178.00753935,196.0,195.92,0.68]
[1753171753903,42.52,195.95,195.92,0.68]
[1753171754492,42.52,195.95,195.93,0.68]
[1753171754716,1177.31753935,196.0,195.95,26.0]
[1753171755016,1096.35742373,196.0,195.99,65.11742573]
[1753171755216,974.63279751,196.0,195.99,65.11742573]
[1753171755397,920.26473948,196.0,195.99,65.79742573]
[1753171755596,915.45663422,196.0,195.99,65.79742573]
[1753171755794,911.90045188,196.0,195.99,65.79742573]
[1753171756025,911.70812767,196.0,195.99,65.79742573]
[1753171756517,900.28949912,196.0,195.99,65.79742573]
[1753171757021,900.28949912,196.0,195.99,108.17742573]
[1753171757316,876.51949912,196.0,195.99,108.17742573]
[1753171758092,784.75611435,196.0,195.99,125.95077201]
[1753171758314,784.75611435,196.0,195.99,110.70077201]
[1753171758895,783.12317411,196.0,195.99,136.48074448]
[1753171759101,705.89075551,196.0,195.99,155.36625553]
[1753171759309,678.84098758,196.0,195.99,175.34151287]
[1753171759509,575.87244064,196.0,195.99,181.76752002]
[1753171759831,470.69444136,196.0,195.99,184.77921737]
[1753171759991,437.8669772,196.0,195.99,184.77921737]
[1753171760192,400.98056714,196.0,195.99,184.77921737]
[1753171760505,331.97397505,196.0,195.99,132.03099209]
[1753171760695,236.70903777,196.0,195.99,172.77055213]
[1753171760894,212.80150247,196.0,195.99,183.59262509]
[1753171761097,143.66464758,196.0,195.99,183.59262509]
[1753171761332,81.74711228,196.0,195.99,183.59262509]
[1753171761624,0.06,196.07,196.04,32.03468397]
[1753171761831,0.06,196.22,196.07,16.78468397]
[1753171762002,0.06,196.22,196.14,11.16637088]
[1753171762202,0.06,196.22,196.14,53.56637088]
[1753171762429,0.06,196.22,196.14,11.16637088]
[1753171762614,0.06,196.22,196.17,11.16637088]
[1753171764638,0.06,196.22,196.19,26.0]
[1753171764825,0.06,196.22,196.19,79.44637088]
[1753171766552,0.2,196.3,196.19,159.34742573]
[1753171766709,0.2,196.3,196.19,155.4]
[1753171766908,0.2,196.3,196.29,11.16637088]
[1753171767107,0.2,196.3,196.29,53.36637088]
[1753171768238,0.2,196.3,196.29,42.2]
[1753171768443,0.2,196.3,196.29,11.16637088]
[1753171768729,0.89,196.3,196.29,11.16637088]
[1753171769140,0.89,196.3,196.27,42.12]
[1753171769308,0.69,196.29,196.28,11.16637088]
[1753171769508,0.69,196.29,196.27,53.28637088]
[1753171769704,0.2,196.3,196.17,2.036919]
[1753171769705,0.69,196.28,196.24,11.16637088]
[1753171769903,10.0,196.27,196.22,11.16637088]
[1753171770127,10.0,196.24,196.21,11.16637088]
[1753171770328,1.32691022,196.26,196.2,11.16637088]
[1753171770329,0.69,196.23,196.2,11.16637088]
[1753171770527,10.0,196.25,196.19,11.16637088]
[1753171770528,0.69,196.22,196.19,11.16637088]
[1753171770715,0.69,196.21,196.17,11.16637088]
[1753171771120,0.69,196.2,196.17,11.16637088]
[1753171771333,0.69,196.19,196.17,11.16637088]
[1753171771538,0.69,196.19,196.18,11.16637088]
[1753171771918,0.69,196.23,196.18,11.16637088]
[1753171772237,0.69,196.22,196.15,42.02]
[1753171772536,10.0,196.29,196.21,11.16637088]
[1753171772731,17.4839,196.3,196.28,11.16637088]
[1753171772940,6.7939,196.3,196.29,11.16637088]
[1753171773111,16.7939,196.3,196.29,11.16637088]
[1753171773433,6.7939,196.3,196.29,11.16637088]
[1753171773639,7.4839,196.3,196.29,11.16637088]
[1753171774141,6.7939,196.3,196.29,11.16637088]
[1753171774337,6.7939,196.3,196.24,42.0]
[1753171774515,7.4839,196.3,196.29,11.16637088]
[1753171774838,10.0,196.29,196.26,11.16637088]
[1753171775045,10.69,196.28,196.26,11.16637088]
[1753171775222,10.0,196.29,196.26,11.16637088]
[1753171775424,0.69,196.27,196.22,41.96]
[1753171775620,6.7939,196.3,196.26,11.16637088]
[1753171775815,0.69,196.29,196.17,26.0]
[1753171776039,10.69,196.29,196.17,26.0]
[1753171776237,10.0,196.26,196.14,11.16637088]
[1753171776445,0.69,196.25,196.17,26.0]
[1753171776630,10.69,196.25,196.15,41.88]
[1753171776825,10.69,196.25,196.15,67.88]
[1753171777325,10.69,196.25,196.23,11.16637088]
[1753171777524,0.69,196.24,196.23,11.16637088]
[1753171778137,0.69,196.24,196.15,67.88]
[1753171778334,10.0,196.27,196.23,11.16637088]
[1753171778542,0.69,196.26,196.25,11.16637088]
[1753171778747,10.69,196.26,196.25,11.16637088]
[1753171778938,0.69,196.26,196.25,11.16637088]
[1753171779243,10.69,196.26,196.15,67.88]
[1753171779452,10.0,196.24,196.2,11.16637088]
[1753171779754,10.0,196.22,196.19,11.16637088]
[1753171779920,0.66,196.21,196.2,11.16637088]
[1753171780540,0.66,196.21,196.14,41.82]
[1753171780747,0.66,196.21,196.11,41.76]
[1753171780748,1.5748,196.19,196.11,41.76]
[1753171780924,28.16487088,196.18,196.01,10.0]
[1753171781123,28.16487088,196.18,196.1,11.16637088]
[1753171781124,10.0,196.15,196.1,11.16637088]
[1753171781322,10.0,196.13,196.08,11.16637088]
[1753171781624,10.66,196.12,196.09,11.16637088]
[1753171781935,0.66,196.11,196.09,11.16637088]
[1753171782119,0.66,196.1,196.09,11.16637088]
[1753171782522,0.66,196.1,196.08,11.16637088]
[1753171782722,10.0,196.13,196.09,11.16637088]
[1753171782953,10.0,196.12,196.1,11.16637088]
[1753171783151,10.0,196.12,196.11,11.16637088]
[1753171783459,0.66,196.12,196.11,11.16637088]
[1753171783826,16.78468397,196.16,196.11,11.16637088]
[1753171783827,10.0,196.14,196.11,11.16637088]
[1753171784134,0.66,196.13,196.11,11.16637088]
[1753171784332,0.66,196.13,196.04,41.78]
[1753171784333,10.66,196.12,196.1,11.16637088]
[1753171784648,10.66,196.12,196.11,11.16637088]
[1753171784842,0.66,196.12,196.03,67.64]
[1753171785146,0.66,196.12,196.1,11.16637088]
[1753171785324,0.66,196.12,196.11,11.16637088]
[1753171785523,10.66,196.12,196.11,11.16637088]
[1753171785737,10.0,196.11,196.0,11.16637088]
[1753171785939,10.0,196.11,196.09,11.16637088]
[1753171786253,0.63723491,196.16,196.1,11.16637088]
[1753171786254,10.0,196.14,196.1,11.16637088]
[1753171786440,0.66,196.13,196.04,26.0]
[1753171786640,10.0,196.15,196.12,11.16637088]
[1753171786935,10.0,196.15,196.13,11.16637088]
[1753171787119,10.0,196.12,196.03,26.0]
[1753171787324,10.0,196.09,196.08,11.16637088]
[1753171787627,10.66,196.09,196.08,11.16637088]
[1753171788028,0.66,196.09,196.08,11.16637088]
[1753171788440,10.0,196.11,196.08,11.16637088]
[1753171788743,0.66,196.11,196.1,11.16637088]
[1753171788950,10.66,196.11,196.1,11.16637088]
[1753171789240,0.66,196.11,196.1,11.16637088]
[1753171789452,0.63726739,196.15,196.1,11.16637088]
[1753171789453,0.66,196.15,196.1,11.16637088]
[1753171789633,0.66,196.15,196.14,11.16637088]
[1753171789835,10.66,196.15,196.14,11.16637088]
[1753171790026,10.0,196.13,196.09,11.16637088]
[1753171790235,10.0,196.11,196.09,11.16637088]
[1753171790437,10.66,196.11,196.1,11.16637088]
[1753171790644,10.0,196.09,196.06,0.03]
[1753171790953,10.0,196.09,196.08,11.16637088]
[1753171791158,0.66,196.1,196.08,11.16637088]
[1753171791334,10.66,196.1,196.09,11.16637088]
[1753171791540,0.66,196.1,196.09,11.16637088]
[1753171791736,10.66,196.1,196.09,11.16637088]
[1753171791952,10.0,196.13,196.09,11.16637088]
[1753171792143,11.5748,196.19,196.12,11.16637088]
[1753171792446,11.5748,196.19,196.08,26.0]
[1753171792447,1.5748,196.19,196.09,41.3]
[1753171792755,16.3385,196.18,196.17,11.16637088]
[1753171792954,16.9985,196.18,196.17,11.16637088]
[1753171793163,16.9985,196.18,196.06,0.03]
[1753171793164,10.0,196.15,196.06,0.03]
[1753171793452,10.0,196.12,196.11,11.16637088]
[1753171793951,11.8035733,196.17,196.11,11.16637088]
[1753171793952,10.0,196.13,196.11,11.16637088]
[1753171794152,10.66,196.12,196.06,0.03]
[1753171794327,10.0,196.09,196.06,0.03]
[1753171794530,10.0,196.1,196.08,11.16637088]
[1753171794730,10.0,196.12,196.09,11.16637088]
[1753171794949,10.0,196.1,196.08,11.16637088]
[1753171795127,10.0,196.1,196.09,11.16637088]
[1753171795331,10.0,196.12,196.09,11.16637088]
[1753171795554,10.0,196.12,196.1,11.16637088]
[1753171795741,64.50318397,196.18,196.06,0.03]
[1753171795742,10.0,196.1,196.09,0.03]
[1753171796251,10.66,196.12,196.09,0.03]
[1753171796454,0.66,196.11,196.09,0.03]
[1753171796760,10.0,196.1,196.09,0.03]
[1753171797131,10.0,196.12,196.09,11.19637088]
[1753171797336,10.0,196.1,196.09,0.03]
[1753171797952,10.66,196.1,196.09,0.03]
[1753171800558,0.63729988,196.14,196.09,11.19637088]
[1753171800559,10.0,196.11,196.09,11.19637088]
[1753171800857,10.0,196.12,196.1,11.16637088]
[1753171801053,16.78468397,196.17,196.09,0.03]
[1753171801054,10.0,196.15,196.11,11.16637088]
[1753171801254,6.3385,196.18,196.14,7.47818162]
[1753171801432,0.66,196.21,196.17,7.47818162]
[1753171801632,0.66,196.21,196.11,26.0]
[1753171801633,10.0,196.21,196.11,26.0]
[1753171801842,10.0,196.2,196.19,7.47818162]
[1753171802044,0.66,196.22,196.19,7.47818162]
[1753171802357,10.0,196.21,196.2,7.47818162]
[1753171802535,0.06,196.23,196.2,7.47818162]
[1753171802729,6.0583,196.24,196.22,7.47818162]
[1753171802929,6.0583,196.24,196.15,26.0]
[1753171802930,16.0583,196.24,196.15,26.0]
[1753171803150,10.0,196.23,196.16,17.84257748]
[1753171803554,6.0583,196.24,196.16,43.33197389]
[1753171803751,0.66,196.25,196.16,43.33197389]
[1753171803930,0.06,196.27,196.16,43.33197389]
[1753171804132,10.0,196.25,196.16,43.33197389]
[1753171804536,0.06,196.27,196.16,68.8213703]
[1753171804732,0.66,196.26,196.16,68.8213703]
[1753171804935,10.0,196.25,196.24,11.13352007]
[1753171805171,0.66,196.26,196.24,11.13352007]
[1753171805336,0.2,196.3,196.25,5.0955414]
[1753171805536,0.2,196.3,196.29,11.13352007]
[1753171806035,1e-08,196.31,196.29,11.13352007]
[1753171806259,1e-08,196.34,196.3,11.13352007]
[1753171806549,1e-08,196.34,196.33,11.13352007]
[1753171806758,0.66,196.33,196.28,11.13352007]
[1753171807149,0.63671556,196.32,196.28,11.13352007]
[1753171807467,0.63671556,196.32,196.21,51.48256716]
[1753171807468,0.66,196.31,196.21,51.48256716]
[1753171807633,11.7703005,196.3,196.24,11.13352007]
[1753171807835,0.66,196.29,196.24,11.13352007]
[1753171808065,11.79352007,196.29,196.23,11.13352007]
[1753171808247,0.66,196.28,196.23,11.13352007]
[1753171808452,0.66,196.27,196.23,11.13352007]
[1753171808772,0.66,196.26,196.23,11.13352007]
[1753171808938,0.66,196.26,196.25,11.13352007]
[1753171809274,0.66,196.26,196.24,5.09580105]
[1753171809444,0.66,196.25,196.24,5.09580105]
[1753171810338,0.7,196.28,196.24,28.96882376]
[1753171810570,0.7,196.27,196.24,28.96882376]
[1753171810778,0.7,196.26,196.24,17.83530369]
[1753171811272,0.7,196.25,196.24,5.09580105]
[1753171811466,0.7,196.28,196.24,28.96882376]
[1753171811645,0.7,196.27,196.24,28.96882376]
[1753171811843,0.7,196.26,196.24,17.83530369]
[1753171812272,0.7,196.25,196.24,5.09580105]
[1753171812867,0.7,196.25,196.21,25.48256716]
[1753171813070,0.7,196.24,196.21,11.13352007]
[1753171813251,11.83352007,196.27,196.21,11.13352007]
[1753171813452,0.7,196.27,196.22,11.13352007]
[1753171813650,0.7,196.26,196.23,11.13352007]
[1753171814167,0.7,196.26,196.18,17.84075847]
[1753171814168,11.83352007,196.25,196.18,17.84075847]
[1753171814339,0.7,196.25,196.2,11.13352007]
[1753171814542,0.7,196.24,196.2,11.13352007]
[1753171814742,0.7,196.24,196.21,11.13352007]
[1753171814964,0.7,196.24,196.22,5.09632045]
[1753171815764,0.7,196.27,196.23,11.13352007]
[1753171816148,0.06,196.29,196.26,11.13352007]
[1753171816352,0.06,196.29,196.22,17.83712159]
[1753171816353,0.7,196.28,196.22,17.83712159]
[1753171816556,1.33684532,196.28,196.23,11.13352007]
[1753171816855,0.7,196.27,196.23,11.13352007]
[1753171817051,11.13352007,196.24,196.18,17.84075847]
[1753171817278,26.06,196.33,196.18,17.84075847]
[1753171817279,11.13352007,196.22,196.18,17.84075847]
[1753171817593,11.13352007,196.19,196.18,5.09735956]
[1753171817872,11.83352007,196.19,196.18,5.09735956]
[1753171818288,11.13352007,196.21,196.18,5.09735956]
[1753171818576,0.7,196.25,196.2,11.13352007]
[1753171818957,0.7,196.24,196.21,5.09658019]
[1753171819165,11.13352007,196.22,196.11,31.09917903]
[1753171819368,11.83352007,196.22,196.16,11.13352007]
[1753171819672,0.7,196.22,196.17,11.13352007]
[1753171819870,0.7,196.21,196.11,94.83891693]
[1753171820182,0.7,196.24,196.19,11.13352007]
[1753171820353,0.7,196.24,196.2,11.13352007]
[1753171821086,9.9407,196.27,196.23,11.13352007]
[1753171821247,0.7,196.29,196.25,11.13352007]
[1753171821445,7.13061556,196.32,196.26,11.13352007]
[1753171821683,11.83352007,196.31,196.22,17.83712159]
[1753171821859,12.47026807,196.31,196.25,11.13352007]
[1753171822053,11.13352007,196.3,196.24,11.13352007]
[1753171822249,12.47033294,196.29,196.22,17.83712159]
[1753171822447,11.13352007,196.26,196.22,17.83712159]
[1753171822651,0.7,196.25,196.22,17.83712159]
[1753171822975,11.83352007,196.28,196.23,11.13352007]
[1753171823174,0.7,196.27,196.23,7.47391372]
[1753171823380,0.63678043,196.3,196.24,7.47391372]
[1753171823381,7.47391372,196.3,196.24,7.47391372]
[1753171823561,8.17391372,196.3,196.24,7.47391372]
[1753171823760,0.7,196.3,196.22,43.31872387]
[1753171823983,7.13061556,196.32,196.27,7.47391372]
[1753171823984,6.4939,196.32,196.27,7.47391372]
[1753171824176,0.06,196.32,196.3,7.47391372]
[1753171824493,0.06,196.32,196.28,7.47391372]
[1753171825292,0.7,196.31,196.29,5.09450303]
[1753171825581,0.7,196.3,196.29,5.09450303]
[1753171826349,8.17391372,196.3,196.29,5.09450303]
[1753171826592,8.17391372,196.3,196.22,17.83708971]
[1753171826759,7.47391372,196.28,196.22,17.83708971]
[1753171826984,8.17391372,196.27,196.22,17.83708971]
[1753171827275,8.17391372,196.26,196.22,17.83708971]
[1753171827473,7.47391372,196.23,196.13,7.47391372]
[1753171827678,7.47391372,196.18,196.12,17.84621659]
[1753171827989,0.7,196.17,196.12,5.09891902]
[1753171828160,7.47391372,196.13,196.08,12.74927859]
[1753171828365,1.33720242,196.17,196.08,12.74927859]
[1753171828366,7.47391372,196.11,196.08,12.74927859]
[1753171828870,8.17391372,196.11,196.08,12.74927859]
[1753171829372,0.7,196.11,196.08,12.74927859]
[1753171829576,8.17391372,196.15,196.08,12.74927859]
[1753171829773,6.5516,196.16,196.08,12.74927859]
[1753171829774,6.5516,196.16,196.11,7.47391372]
[1753171830075,8.17391372,196.18,196.12,7.47391372]
[1753171830254,0.7,196.17,196.12,7.47391372]
[1753171830664,0.7,196.17,196.13,7.47391372]
[1753171830861,7.47391372,196.18,196.12,7.47391372]
[1753171831172,14.17661372,196.21,196.15,7.47391372]
[1753171831551,6.7027,196.21,196.13,17.84530668]
[1753171831758,7.47391372,196.2,196.14,7.47391372]
[1753171832762,14.17661372,196.21,196.15,7.47391372]
[1753171832963,6.7027,196.21,196.17,7.47391372]
[1753171833163,6.7027,196.21,196.18,5.09735956]
[1753171833363,7.47391372,196.23,196.18,17.84075847]
[1753171833557,0.7,196.23,196.18,17.84075847]
[1753171833775,8.17391372,196.22,196.18,17.84075847]
[1753171833980,8.17391372,196.21,196.18,5.09735956]
[1753171834163,8.17391372,196.2,196.18,5.09735956]
[1753171834363,8.81105118,196.19,196.13,5.09865905]
[1753171834576,7.47391372,196.18,196.13,5.09865905]
[1753171834775,7.47391372,196.18,196.13,17.84530668]
[1753171834979,8.17391372,196.17,196.13,17.84530668]
[1753171835174,0.7,196.19,196.13,7.47391372]
[1753171835376,0.63697513,196.24,196.16,7.47391372]
[1753171835578,0.7,196.22,196.18,7.47391372]
[1753171835785,7.24504267,196.25,196.18,7.47391372]
[1753171835786,7.47391372,196.23,196.18,7.47391372]
[1753171836082,0.7,196.22,196.17,7.47391372]
[1753171836661,0.7,196.21,196.17,7.47391372]
[1753171836976,0.7,196.21,196.16,7.47391372]
[1753171837180,0.7,196.21,196.17,5.09761941]
[1753171837369,8.17391372,196.21,196.17,5.09761941]
[1753171837772,6.6081,196.25,196.12,0.03]
[1753171837773,7.47391372,196.18,196.12,0.03]
[1753171837987,7.47391372,196.15,196.12,0.03]
[1753171838285,0.63716994,196.18,196.13,5.09865905]
[1753171838286,17.48468397,196.17,196.13,5.09865905]
[1753171838484,1.33723491,196.16,196.13,5.09865905]
[1753171838667,17.48468397,196.15,196.12,0.03]
[1753171838871,7.09779988,196.14,196.12,0.03]
[1753171839098,7.79779988,196.14,196.12,0.03]
[1753171839271,0.7,196.13,196.12,0.03]
[1753171839470,0.7,196.13,196.09,0.03]
[1753171839471,8.17391372,196.13,196.09,0.03]
[1753171839674,7.47391372,196.1,196.09,0.03]
[1753171839876,7.47391372,196.1,196.02,12.75354417]
[1753171840071,7.47391372,196.07,196.02,12.75354417]
[1753171840485,8.13391372,196.07,196.02,12.75354417]
[1753171840686,24.91859769,196.07,196.02,5.10147015]
[1753171840994,16.78468397,196.06,196.04,0.03]
[1753171841292,16.78468397,196.04,196.01,0.03]
[1753171841466,34.4094778,196.02,195.99,0.03]
[1753171841666,27.9489778,196.0,195.97,0.1]
[1753171841864,27.9489778,195.98,195.97,0.1]
[1753171842068,27.9489778,195.98,195.85,0.15]
[1753171842069,16.78468397,195.97,195.92,5.10408927]
[1753171842264,11.16429383,195.93,195.92,5.10408927]
[1753171842791,11.82429383,195.93,195.92,5.10408927]
[1753171843366,0.66,195.97,195.89,12.76165959]
[1753171843599,0.66,195.97,195.9,11.16429383]
[1753171843600,11.16429383,195.96,195.9,11.16429383]
[1753171843891,11.16429383,195.93,195.89,12.76165959]
[1753171844471,11.16429383,195.92,195.89,12.76165959]
[1753171844691,11.16429383,195.91,195.88,5.10516642]
[1753171844889,11.16429383,195.94,195.88,16.26946025]
[1753171845093,11.16429383,195.94,195.88,29.03237632]
[1753171845592,0.66,195.95,195.88,17.86808249]
[1753171845593,11.16429383,195.93,195.88,17.86808249]
[1753171845785,11.16429383,195.92,195.88,17.86808249]
[1753171846094,11.82429383,195.93,195.88,17.86808249]
[1753171846308,11.16429383,195.96,195.89,0.31]
[1753171846776,11.16429383,195.96,195.9,11.16429383]
[1753171846966,0.63785273,195.97,195.89,0.31]
[1753171846967,0.6377551,196.0,195.94,11.16429383]
[1753171847172,11.16429383,196.0,195.94,11.16429383]
[1753171847396,16.78468397,195.99,195.96,5.10308226]
[1753171847593,11.16429383,195.97,195.89,5.10490581]
[1753171847900,0.66,195.98,195.89,5.10490581]
[1753171847901,11.16429383,195.9,195.89,5.10490581]
[1753171848192,11.82429383,195.9,195.89,5.10490581]
[1753171848398,11.82429383,195.9,195.72,11.16429383]
[1753171848399,11.82429383,195.9,195.83,5.10646989]
[1753171848578,11.82429383,195.9,195.83,16.27076372]
[1753171848579,11.16429383,195.89,195.83,16.27076372]
[1753171848896,11.16429383,195.89,195.83,29.03693846]
[1753171849087,11.16429383,195.89,195.83,17.87264463]
[1753171849297,0.66,195.88,195.83,17.87264463]
[1753171849593,11.82429383,195.87,195.83,12.76617474]
[1753171849777,11.82429383,195.86,195.83,12.76617474]
[1753171849977,0.66,195.85,195.82,5.10673067]
[1753171850279,6.4141,195.88,195.82,5.10673067]
[1753171850280,11.16429383,195.83,195.82,5.10673067]
[1753171850479,11.16429383,195.86,195.82,17.87355734]
[1753171850899,11.82429383,195.86,195.82,17.87355734]
[1753171851102,40.56,195.87,195.82,17.87355734]
[1753171851394,11.16429383,195.85,195.82,5.10673067]
[1753171851596,16.78468397,195.9,195.82,5.10673067]
[1753171851597,0.66,195.89,195.82,11.16429383]
[1753171851801,11.16429383,195.85,195.8,17.87485285]
[1753171851983,11.16429383,195.86,195.8,29.03914668]
[1753171852184,11.16429383,195.87,195.82,11.16429383]
[1753171852389,11.82429383,195.87,195.81,11.16429383]
[1753171852592,11.16429383,195.89,195.83,11.16429383]
[1753171853188,0.66,195.89,195.82,11.16429383]
[1753171853393,11.16429383,195.87,195.82,11.16429383]
[1753171853692,11.16429383,195.83,195.78,16.27206786]
[1753171853900,11.82429383,195.83,195.78,5.10777403]
[1753171854085,11.16429383,195.8,195.78,5.10777403]
[1753171854291,11.82429383,195.8,195.78,5.10777403]
[1753171854580,11.16429383,195.82,195.78,5.10777403]
[1753171854796,11.16429383,195.82,195.78,17.87720911]
[1753171855103,11.16429383,195.8,195.78,5.10777403]
[1753171855307,0.66,195.79,195.78,5.10777403]
[1753171855604,11.82429383,195.79,195.71,17.88360329]
[1753171855906,27.9489778,195.86,195.62,12.77927662]
[1753171855907,9.0374,195.76,195.62,12.77927662]
[1753171856109,11.16429383,195.68,195.63,11.16429383]
[1753171856295,11.82429383,195.68,195.66,18.15841069]
[1753171856679,0.66,195.68,195.66,18.15841069]
[1753171856979,11.16429383,195.7,195.66,18.15841069]
[1753171857213,11.16429383,195.68,195.66,13.04755351]
[1753171857400,0.66,195.67,195.66,13.04755351]
[1753171857687,0.66,195.67,195.66,18.15845407]
[1753171858105,11.82429383,195.67,195.66,18.15845407]
[1753171858287,11.82429383,195.67,195.66,13.04755351]
[1753171858826,12.46312451,195.67,195.66,13.04755351]
[1753171859419,1.29883068,195.67,195.66,18.15846018]
[1753171859583,40.38,195.68,195.66,18.15846018]
[1753171859778,11.82429383,195.67,195.66,13.04755351]
[1753171860188,0.63863485,195.73,195.66,18.15846018]
[1753171860392,0.66,195.72,195.66,30.93572686]
[1753171860593,0.6385696,195.75,195.71,11.16429383]